[Event "Live Chess"]
[Site "Chess.com"]
[Date "2024.06.02"]
[Round "-"]
[White "MagnersCarlsberg2870"]
[Black "bill77678"]
[Result "0-1"]
[WhiteElo "1767"]
[BlackElo "1843"]
[TimeControl "300"]
[EndTime "7:43:15 PDT"]
[Termination "bill77678 won by resignation"]

1. d4 {[%clk 0:04:57.2]} 1... d5 {[%clk 0:04:59]} 2. e3 {[%clk 0:04:56.1]} 2...
Nf6 {[%clk 0:04:56.2]} 3. Bd3 {[%clk 0:04:54.9]} 3... Nbd7 {[%clk 0:04:54.4]} 4.
f4 {[%clk 0:04:53.4]} 4... e6 {[%clk 0:04:52.9]} 5. Nf3 {[%clk 0:04:52]} 5...
Bd6 {[%clk 0:04:52]} 6. Nbd2 {[%clk 0:04:50.5]} 6... b6 {[%clk 0:04:49.9]} 7.
Qe2 {[%clk 0:04:47.8]} 7... c5 {[%clk 0:04:48.5]} 8. c3 {[%clk 0:04:46.6]} 8...
c4 {[%clk 0:04:46.7]} 9. Bc2 {[%clk 0:04:45.4]} 9... O-O {[%clk 0:04:45.8]} 10.
e4 {[%clk 0:04:44.4]} 10... dxe4 {[%clk 0:04:42.1]} 11. Nxe4 {[%clk 0:04:42.7]}
11... Nxe4 {[%clk 0:04:40.8]} 12. Qxe4 {[%clk 0:04:41.6]} 12... Nf6 {[%clk
0:04:39.1]} 13. Qxa8 {[%clk 0:04:40]} 13... Qc7 {[%clk 0:04:33.7]} 14. Ne5
{[%clk 0:04:29.5]} 14... Bxe5 {[%clk 0:04:20.2]} 15. fxe5 {[%clk 0:04:23.4]}
15... Nd5 {[%clk 0:04:18.8]} 16. O-O {[%clk 0:04:01.4]} 16... Ba6 {[%clk
0:04:15.8]} 17. Qxf8+ {[%clk 0:03:58.1]} 17... Kxf8 {[%clk 0:04:15.7]} 18. Bxh7
{[%clk 0:03:55.6]} 18... Bb7 {[%clk 0:04:10.6]} 19. Bg6 {[%clk 0:03:50.9]} 19...
f5 {[%clk 0:04:05.5]} 20. exf6 {[%clk 0:03:49.3]} 20... gxf6 {[%clk 0:04:01.8]}
21. Bh6+ {[%clk 0:03:47.5]} 21... Ke7 {[%clk 0:04:00.1]} 22. Rae1 {[%clk
0:03:42.4]} 22... Bc8 {[%clk 0:03:48.8]} 23. Be4 {[%clk 0:03:39.5]} 23... Qd7
{[%clk 0:03:36.3]} 24. Bg7 {[%clk 0:03:29.7]} 24... Bb7 {[%clk 0:03:31.4]} 25.
Bxd5 {[%clk 0:03:23.1]} 25... Qxd5 {[%clk 0:03:27.7]} 26. Bxf6+ {[%clk
0:03:21.4]} 26... Kd7 {[%clk 0:03:24.8]} 27. Re2 {[%clk 0:03:13.4]} 27... Qh5
{[%clk 0:03:19.4]} 28. Rfe1 {[%clk 0:03:08]} 28... Qg6 {[%clk 0:03:17.9]} 29.
Be5 {[%clk 0:03:04.8]} 29... Bd5 {[%clk 0:03:16]} 30. Rf1 {[%clk 0:03:00.1]}
30... Qg4 {[%clk 0:03:12.2]} 31. Ref2 {[%clk 0:02:56]} 31... a5 {[%clk
0:02:59.2]} 32. Bg3 {[%clk 0:02:54.6]} 32... Qe4 {[%clk 0:02:54.6]} 33. Rf7+
{[%clk 0:02:51.7]} 33... Kc6 {[%clk 0:02:53.7]} 34. R1f2 {[%clk 0:02:28.4]}
34... Kb5 {[%clk 0:02:45.2]} 35. R7f3 {[%clk 0:02:18.9]} 35... Qb1+ {[%clk
0:02:42.1]} 36. Rf1 {[%clk 0:02:16.7]} 36... Qxb2 {[%clk 0:02:41.2]} 37. R3f2
{[%clk 0:02:12.1]} 37... Qxc3 {[%clk 0:02:40]} 38. h4 {[%clk 0:02:10.7]} 38...
Qxd4 {[%clk 0:02:37]} 39. h5 {[%clk 0:02:09.2]} 39... Qg4 {[%clk 0:02:32.8]} 40.
Bf4 {[%clk 0:02:02.8]} 40... Qxh5 {[%clk 0:02:28.6]} 41. Rb1+ {[%clk 0:02:00.5]}
41... Kc6 {[%clk 0:02:27.3]} 42. Be3 {[%clk 0:01:57.9]} 42... b5 {[%clk
0:02:26.1]} 43. Rf8 {[%clk 0:01:36.4]} 43... Qe5 {[%clk 0:02:16.1]} 44. Re1
{[%clk 0:01:27.4]} 44... Qb2 {[%clk 0:02:07.5]} 45. Rf2 {[%clk 0:01:22.3]} 45...
Qc3 {[%clk 0:02:05.3]} 46. Rc1 {[%clk 0:01:15.1]} 46... Qxe3 {[%clk 0:02:03.4]}
0-1

[Event "Live Chess"]
[Site "Chess.com"]
[Date "2024.06.02"]
[Round "-"]
[White "WorcesterYork"]
[Black "StoreySniper"]
[Result "1-0"]
[WhiteElo "2461"]
[BlackElo "2489"]
[TimeControl "300"]
[EndTime "7:43:18 PDT"]
[Termination "WorcesterYork won by checkmate"]

1. d4 {[%clk 0:04:58.7]} 1... g6 {[%clk 0:04:59.1]} 2. h4 {[%clk 0:04:57.2]}
2... Bg7 {[%clk 0:04:58.3]} 3. h5 {[%clk 0:04:56.6]} 3... c5 {[%clk 0:04:57.9]}
4. dxc5 {[%clk 0:04:54.7]} 4... Qa5+ {[%clk 0:04:56.6]} 5. c3 {[%clk 0:04:53.9]}
5... Qxc5 {[%clk 0:04:55.6]} 6. h6 {[%clk 0:04:53.5]} 6... Bf6 {[%clk 0:04:50]}
7. e4 {[%clk 0:04:52.5]} 7... Nc6 {[%clk 0:04:47.4]} 8. Be3 {[%clk 0:04:51.6]}
8... Qa5 {[%clk 0:04:45.8]} 9. Nd2 {[%clk 0:04:50.8]} 9... Qc7 {[%clk
0:04:36.2]} 10. f4 {[%clk 0:04:47.9]} 10... d6 {[%clk 0:04:34.3]} 11. Ngf3
{[%clk 0:04:46.8]} 11... Bg4 {[%clk 0:04:29.9]} 12. Be2 {[%clk 0:04:39.6]} 12...
e6 {[%clk 0:04:22.3]} 13. Nc4 {[%clk 0:04:36.3]} 13... O-O-O {[%clk 0:04:12.2]}
14. Qa4 {[%clk 0:04:32.5]} 14... Bxf3 {[%clk 0:03:57.7]} 15. gxf3 {[%clk
0:04:29.3]} 15... d5 {[%clk 0:03:55.8]} 16. Ne5 {[%clk 0:04:21.5]} 16... Bxe5
{[%clk 0:03:38.5]} 17. fxe5 {[%clk 0:04:21.4]} 17... Kb8 {[%clk 0:03:26]} 18.
exd5 {[%clk 0:04:16]} 18... Rxd5 {[%clk 0:03:23.2]} 19. f4 {[%clk 0:04:14.9]}
19... Nge7 {[%clk 0:03:21.1]} 20. Bf3 {[%clk 0:03:28.4]} 20... Rd3 {[%clk
0:03:07]} 21. Ke2 {[%clk 0:03:26]} 21... Rhd8 {[%clk 0:02:57.1]} 22. Rhd1 {[%clk
0:03:24.9]} 22... Rxd1 {[%clk 0:02:52]} 23. Rxd1 {[%clk 0:03:24.8]} 23... Rxd1
{[%clk 0:02:50.9]} 24. Qxd1 {[%clk 0:03:18.5]} 24... Nf5 {[%clk 0:02:43.9]} 25.
Bc5 {[%clk 0:03:17.5]} 25... Kc8 {[%clk 0:02:35.8]} 26. b4 {[%clk 0:02:58]}
26... b6 {[%clk 0:01:53.3]} 27. Bf8 {[%clk 0:02:47]} 27... Nxe5 {[%clk
0:01:43.6]} 28. fxe5 {[%clk 0:02:45.5]} 28... Qxe5+ {[%clk 0:01:42.7]} 29. Kd2
{[%clk 0:02:38.1]} 29... Ne3 {[%clk 0:01:40.1]} 30. Qe2 {[%clk 0:02:35.6]} 30...
Qh2 {[%clk 0:00:46.2]} 31. Kxe3 {[%clk 0:02:31]} 31... Qg1+ {[%clk 0:00:42]} 32.
Kd2 {[%clk 0:02:24.2]} 32... Qa1 {[%clk 0:00:36.6]} 33. Qc4+ {[%clk 0:02:22.9]}
33... Kd8 {[%clk 0:00:34.4]} 34. Qd4+ {[%clk 0:02:18]} 34... Ke8 {[%clk
0:00:33.1]} 35. Bc6+ {[%clk 0:02:16.2]} 35... Kxf8 {[%clk 0:00:32.4]} 36. Qd8#
{[%clk 0:02:15.4]} 1-0

[Event "Live Chess"]
[Site "Chess.com"]
[Date "2024.06.02"]
[Round "-"]
[White "NAZRIZ1977"]
[Black "ivan_1968"]
[Result "1-0"]
[WhiteElo "2079"]
[BlackElo "1806"]
[TimeControl "300"]
[EndTime "7:43:29 PDT"]
[Termination "NAZRIZ1977 won by resignation"]

1. d4 {[%clk 0:04:56.3]} 1... Nf6 {[%clk 0:04:58.4]} 2. c4 {[%clk 0:04:55.4]}
2... e6 {[%clk 0:04:57.7]} 3. Nc3 {[%clk 0:04:53.7]} 3... Bb4 {[%clk 0:04:57.3]}
4. Bg5 {[%clk 0:04:50.6]} 4... h6 {[%clk 0:04:55.6]} 5. Bh4 {[%clk 0:04:48.3]}
5... g5 {[%clk 0:04:52.9]} 6. Bg3 {[%clk 0:04:47.5]} 6... Ne4 {[%clk 0:04:52.5]}
7. Qc2 {[%clk 0:04:46.9]} 7... f5 {[%clk 0:04:50.5]} 8. f3 {[%clk 0:04:44.2]}
8... Bxc3+ {[%clk 0:04:47.3]} 9. bxc3 {[%clk 0:04:42.5]} 9... Nxg3 {[%clk
0:04:46.6]} 10. hxg3 {[%clk 0:04:41.9]} 10... Qf6 {[%clk 0:04:45.6]} 11. e4
{[%clk 0:04:37.2]} 11... O-O {[%clk 0:04:41.9]} 12. Bd3 {[%clk 0:04:34.4]} 12...
d6 {[%clk 0:04:39.8]} 13. Ne2 {[%clk 0:04:32.5]} 13... Nc6 {[%clk 0:04:38.3]}
14. O-O-O {[%clk 0:04:30.7]} 14... e5 {[%clk 0:04:36.8]} 15. d5 {[%clk
0:04:29.2]} 15... Ne7 {[%clk 0:04:35]} 16. Rh5 {[%clk 0:04:28.1]} 16... Kg7
{[%clk 0:04:32.7]} 17. Rdh1 {[%clk 0:04:26.3]} 17... Rh8 {[%clk 0:04:31]} 18. f4
{[%clk 0:04:12.5]} 18... exf4 {[%clk 0:04:03.2]} 19. gxf4 {[%clk 0:04:09.3]}
19... Bd7 {[%clk 0:03:34.5]} 20. Kb2 {[%clk 0:03:32.7]} 20... fxe4 {[%clk
0:03:17.3]} 21. Bxe4 {[%clk 0:03:21.4]} 21... Bf5 {[%clk 0:03:16.5]} 22. fxg5
{[%clk 0:03:16]} 22... hxg5 {[%clk 0:03:14.1]} 23. Rxh8 {[%clk 0:03:14.8]} 23...
Rxh8 {[%clk 0:03:10.4]} 24. Rxh8 {[%clk 0:03:14.3]} 24... Kxh8 {[%clk
0:03:09.5]} 25. Ng3 {[%clk 0:03:11.9]} 25... Bg6 {[%clk 0:02:57.5]} 26. Bxg6
{[%clk 0:03:04.8]} 26... Nxg6 {[%clk 0:02:37.1]} 27. Qe2 {[%clk 0:02:53]} 27...
Kg7 {[%clk 0:02:28.2]} 28. Nh5+ {[%clk 0:02:51.6]} 1-0

[Event "Live Chess"]
[Site "Chess.com"]
[Date "2024.06.02"]
[Round "-"]
[White "Mangoalo"]
[Black "gmnorfolk"]
[Result "0-1"]
[WhiteElo "1066"]
[BlackElo "2138"]
[TimeControl "300"]
[EndTime "7:43:45 PDT"]
[Termination "gmnorfolk won by resignation"]

1. e4 {[%clk 0:04:58.5]} 1... c5 {[%clk 0:04:58.9]} 2. Nf3 {[%clk 0:04:57.4]}
2... d6 {[%clk 0:04:55.9]} 3. d4 {[%clk 0:04:57]} 3... cxd4 {[%clk 0:04:54.7]}
4. Nxd4 {[%clk 0:04:56.9]} 4... Nf6 {[%clk 0:04:54.2]} 5. Nc3 {[%clk 0:04:55.7]}
5... a6 {[%clk 0:04:53.8]} 6. f4 {[%clk 0:04:55.1]} 6... e5 {[%clk 0:04:51.7]}
7. fxe5 {[%clk 0:04:52.9]} 7... Nbd7 {[%clk 0:04:51.6]} 8. exf6 {[%clk
0:04:51.4]} 8... Qxf6 {[%clk 0:04:50.2]} 9. Bd3 {[%clk 0:04:40.7]} 9... Qxd4
{[%clk 0:04:47]} 10. Be2 {[%clk 0:04:32.7]} 10... Qxd1+ {[%clk 0:04:43.7]} 11.
Bxd1 {[%clk 0:04:30.2]} 11... Nf6 {[%clk 0:04:41.4]} 12. Bg5 {[%clk 0:04:25.2]}
12... Be7 {[%clk 0:04:39.7]} 13. O-O {[%clk 0:04:23]} 13... O-O {[%clk
0:04:37.7]} 14. Bxf6 {[%clk 0:04:17]} 14... Bxf6 {[%clk 0:04:36.4]} 15. Bf3
{[%clk 0:04:16.7]} 15... Bxc3 {[%clk 0:04:34.6]} 16. bxc3 {[%clk 0:04:16.6]}
16... Be6 {[%clk 0:04:33.6]} 17. a4 {[%clk 0:04:11.1]} 17... Rac8 {[%clk
0:04:32.2]} 18. Ra3 {[%clk 0:04:07.9]} 18... Rc7 {[%clk 0:04:27.3]} 19. a5
{[%clk 0:04:07.4]} 19... Rfc8 {[%clk 0:04:25.3]} 20. Rfa1 {[%clk 0:03:54.7]}
20... Rxc3 {[%clk 0:04:23.7]} 21. Rxc3 {[%clk 0:03:54.6]} 21... Rxc3 {[%clk
0:04:22.6]} 22. Bd1 {[%clk 0:03:53.1]} 22... Kf8 {[%clk 0:04:14.2]} 0-1

[Event "Live Chess"]
[Site "Chess.com"]
[Date "2024.06.02"]
[Round "-"]
[White "GEMdzq"]
[Black "matt1979"]
[Result "1-0"]
[WhiteElo "2269"]
[BlackElo "1433"]
[TimeControl "300"]
[EndTime "7:43:49 PDT"]
[Termination "GEMdzq won on time"]

1. e4 {[%clk 0:04:58.1]} 1... d6 {[%clk 0:04:58.2]} 2. d4 {[%clk 0:04:55.5]}
2... Nf6 {[%clk 0:04:57]} 3. Bd3 {[%clk 0:04:55]} 3... Nbd7 {[%clk 0:04:56.1]}
4. c3 {[%clk 0:04:54.6]} 4... e5 {[%clk 0:04:54.9]} 5. Nf3 {[%clk 0:04:54.4]}
5... Be7 {[%clk 0:04:52.7]} 6. O-O {[%clk 0:04:53.9]} 6... c6 {[%clk 0:04:51.2]}
7. Qe2 {[%clk 0:04:53.1]} 7... Qc7 {[%clk 0:04:49.1]} 8. h3 {[%clk 0:04:48.4]}
8... h6 {[%clk 0:04:45.5]} 9. Be3 {[%clk 0:04:47.9]} 9... g5 {[%clk 0:04:41.8]}
10. Nbd2 {[%clk 0:04:40.9]} 10... Rg8 {[%clk 0:04:37.7]} 11. g4 {[%clk
0:04:36.7]} 11... Nf8 {[%clk 0:04:23.7]} 12. Rfd1 {[%clk 0:04:26.3]} 12... Nxg4
{[%clk 0:04:20.4]} 13. hxg4 {[%clk 0:04:24.8]} 13... Bxg4 {[%clk 0:04:19.7]} 14.
Qe1 {[%clk 0:04:18.6]} 14... Qd7 {[%clk 0:04:10.5]} 15. Be2 {[%clk 0:04:16.3]}
15... Bh3 {[%clk 0:04:02.7]} 16. Nh2 {[%clk 0:04:15.2]} 16... Ng6 {[%clk
0:03:38.5]} 17. dxe5 {[%clk 0:04:07.4]} 17... dxe5 {[%clk 0:03:33.4]} 18. Ndf3
{[%clk 0:04:05.4]} 18... Qe6 {[%clk 0:03:25.1]} 19. Kh1 {[%clk 0:04:03]} 19...
Nf4 {[%clk 0:03:17.3]} 20. Bxf4 {[%clk 0:04:01.6]} 20... gxf4 {[%clk 0:03:15.4]}
21. Bf1 {[%clk 0:04:00.7]} 21... Bg4 {[%clk 0:02:51.1]} 22. Bg2 {[%clk
0:03:58.2]} 22... Bh5 {[%clk 0:02:41.6]} 23. Qf1 {[%clk 0:03:56.3]} 23... Bd6
{[%clk 0:02:14.8]} 24. Bh3 {[%clk 0:03:51.7]} 24... Qe7 {[%clk 0:02:08.6]} 25.
Rd3 {[%clk 0:03:47.5]} 25... f6 {[%clk 0:01:42.6]} 26. Rad1 {[%clk 0:03:45.8]}
26... Rd8 {[%clk 0:01:40.9]} 27. b4 {[%clk 0:03:37.6]} 27... Kf7 {[%clk
0:01:27.1]} 28. Bf5 {[%clk 0:03:36.4]} 28... Rg7 {[%clk 0:01:19.8]} 29. Qh3
{[%clk 0:03:35]} 29... Bxf3+ {[%clk 0:01:14.2]} 30. Rxf3 {[%clk 0:03:31.7]}
30... Rdg8 {[%clk 0:01:01.3]} 31. Qh5+ {[%clk 0:03:30.2]} 31... Kf8 {[%clk
0:00:58.3]} 32. Rfd3 {[%clk 0:03:26.9]} 32... Bc7 {[%clk 0:00:42.4]} 33. Bh3
{[%clk 0:03:15.7]} 33... Bb6 {[%clk 0:00:32.9]} 34. Qxh6 {[%clk 0:03:06.3]}
34... Bxf2 {[%clk 0:00:30]} 35. Rd7 {[%clk 0:02:58.6]} 35... Ke8 {[%clk
0:00:12.2]} 36. Rxe7+ {[%clk 0:02:56]} 36... Kxe7 {[%clk 0:00:07]} 37. Rd7+
{[%clk 0:02:54.2]} 37... Ke8 {[%clk 0:00:01.5]} 38. Rxg7 {[%clk 0:02:54]} 38...
Rxg7 {[%clk 0:00:00.5]} 39. Qxg7 {[%clk 0:02:53.5]} 1-0

[Event "Live Chess"]
[Site "Chess.com"]
[Date "2024.06.02"]
[Round "-"]
[White "raimundklein"]
[Black "Ferrarifan27"]
[Result "0-1"]
[WhiteElo "1590"]
[BlackElo "2148"]
[TimeControl "300"]
[EndTime "7:43:57 PDT"]
[Termination "Ferrarifan27 won by resignation"]

1. e4 {[%clk 0:04:58.1]} 1... e5 {[%clk 0:04:59.1]} 2. Nf3 {[%clk 0:04:57.2]}
2... Nc6 {[%clk 0:04:58]} 3. Bc4 {[%clk 0:04:56]} 3... Bc5 {[%clk 0:04:55.1]} 4.
c3 {[%clk 0:04:54.7]} 4... Nf6 {[%clk 0:04:53.7]} 5. O-O {[%clk 0:04:44.6]} 5...
d6 {[%clk 0:04:48.9]} 6. Re1 {[%clk 0:04:34.9]} 6... Bg4 {[%clk 0:04:45.3]} 7.
h3 {[%clk 0:04:33.9]} 7... Bh5 {[%clk 0:04:44]} 8. b4 {[%clk 0:04:26.4]} 8...
Bb6 {[%clk 0:04:42.5]} 9. a4 {[%clk 0:04:17.1]} 9... a6 {[%clk 0:04:40.6]} 10.
Bb2 {[%clk 0:04:01.8]} 10... O-O {[%clk 0:04:36.9]} 11. Bb3 {[%clk 0:03:47.8]}
11... Kh8 {[%clk 0:04:30.7]} 12. d3 {[%clk 0:03:38.3]} 12... d5 {[%clk
0:04:03.3]} 13. exd5 {[%clk 0:03:24.7]} 13... Nxd5 {[%clk 0:04:03.2]} 14. Qc2
{[%clk 0:03:15.9]} 14... Bxf3 {[%clk 0:04:00.2]} 15. gxf3 {[%clk 0:03:13.7]}
15... Nf4 {[%clk 0:03:59.3]} 16. Kh2 {[%clk 0:03:07.6]} 16... Qh4 {[%clk
0:03:55.9]} 0-1

[Event "Live Chess"]
[Site "Chess.com"]
[Date "2024.06.02"]
[Round "-"]
[White "Step-S"]
[Black "Mikhail_Golubev"]
[Result "0-1"]
[WhiteElo "1281"]
[BlackElo "2493"]
[TimeControl "300"]
[EndTime "7:44:01 PDT"]
[Termination "Mikhail_Golubev won by checkmate"]

1. e4 {[%clk 0:04:56.7]} 1... c5 {[%clk 0:04:52]} 2. f4 {[%clk 0:04:54.4]} 2...
d5 {[%clk 0:04:49.7]} 3. Nf3 {[%clk 0:04:53.7]} 3... dxe4 {[%clk 0:04:48.1]} 4.
Ng5 {[%clk 0:04:50.6]} 4... Nf6 {[%clk 0:04:34.4]} 5. Bc4 {[%clk 0:04:46.8]}
5... Bg4 {[%clk 0:04:20.7]} 6. Be2 {[%clk 0:04:40.1]} 6... Bxe2 {[%clk
0:04:11.6]} 7. Qxe2 {[%clk 0:04:35.9]} 7... Nc6 {[%clk 0:04:03.3]} 8. Qc4 {[%clk
0:04:27.5]} 8... e6 {[%clk 0:03:37.9]} 9. O-O {[%clk 0:04:16.8]} 9... Nd4 {[%clk
0:03:30.9]} 10. Nc3 {[%clk 0:03:48.1]} 10... b5 {[%clk 0:02:50.6]} 11. Nxb5
{[%clk 0:03:34.2]} 11... h6 {[%clk 0:02:48.4]} 12. Nh3 {[%clk 0:03:04.6]} 12...
Qd7 {[%clk 0:02:42.9]} 13. d3 {[%clk 0:02:48.1]} 13... Qxb5 {[%clk 0:02:35.9]}
14. Qxb5+ {[%clk 0:02:42.2]} 14... Nxb5 {[%clk 0:02:35.8]} 15. dxe4 {[%clk
0:02:32.4]} 15... Nxe4 {[%clk 0:02:33.6]} 16. Re1 {[%clk 0:02:28.5]} 16... f5
{[%clk 0:02:20.4]} 17. Nf2 {[%clk 0:02:19.9]} 17... Nxf2 {[%clk 0:02:18.9]} 18.
Kxf2 {[%clk 0:02:07.2]} 18... Kf7 {[%clk 0:02:18.4]} 19. Re5 {[%clk 0:02:02.1]}
19... Bd6 {[%clk 0:02:14.3]} 20. Re3 {[%clk 0:01:56.6]} 20... Nd4 {[%clk
0:02:02.2]} 21. Rc3 {[%clk 0:01:36.7]} 21... g5 {[%clk 0:02:01.2]} 22. fxg5
{[%clk 0:01:32.8]} 22... hxg5 {[%clk 0:02:00]} 23. Bxg5 {[%clk 0:01:30.7]} 23...
Rxh2 {[%clk 0:01:55.1]} 24. b4 {[%clk 0:01:06.7]} 24... cxb4 {[%clk 0:01:45.8]}
25. Rc4 {[%clk 0:00:53.3]} 25... Rg8 {[%clk 0:01:34.4]} 26. Rxd4 {[%clk
0:00:38.4]} 26... Bc5 {[%clk 0:01:33.1]} 27. Be3 {[%clk 0:00:25.1]} 27... Rhxg2+
{[%clk 0:01:31]} 28. Kf3 {[%clk 0:00:21.5]} 28... R8g3+ {[%clk 0:01:15.6]} 29.
Kf4 {[%clk 0:00:19.5]} 29... Kf6 {[%clk 0:01:06.6]} 30. Rd3 {[%clk 0:00:14.6]}
30... e5# {[%clk 0:01:03.4]} 0-1

[Event "Live Chess"]
[Site "Chess.com"]
[Date "2024.06.02"]
[Round "-"]
[White "Grace6363"]
[Black "McCarthyStone"]
[Result "0-1"]
[WhiteElo "1129"]
[BlackElo "2460"]
[TimeControl "300"]
[EndTime "7:44:11 PDT"]
[Termination "McCarthyStone won by resignation"]

1. d4 {[%clk 0:04:57.3]} 1... d5 {[%clk 0:04:59.6]} 2. c4 {[%clk 0:04:56.3]}
2... c6 {[%clk 0:04:57.2]} 3. Nc3 {[%clk 0:04:55.1]} 3... dxc4 {[%clk
0:04:56.4]} 4. e4 {[%clk 0:04:54.1]} 4... b5 {[%clk 0:04:55.3]} 5. a4 {[%clk
0:04:53.5]} 5... b4 {[%clk 0:04:51.6]} 6. Nce2 {[%clk 0:04:52.7]} 6... Nf6
{[%clk 0:04:48.8]} 7. Ng3 {[%clk 0:04:50.2]} 7... a5 {[%clk 0:04:38.4]} 8. Bxc4
{[%clk 0:04:48.7]} 8... e6 {[%clk 0:04:38.1]} 9. Nf3 {[%clk 0:04:47.4]} 9... Ba6
{[%clk 0:04:37.1]} 10. Qd3 {[%clk 0:04:40.3]} 10... Be7 {[%clk 0:04:34.4]} 11.
Bxa6 {[%clk 0:04:36.8]} 11... Nxa6 {[%clk 0:04:34.3]} 12. b3 {[%clk 0:04:28.1]}
12... O-O {[%clk 0:04:27.3]} 13. O-O {[%clk 0:04:26.9]} 13... c5 {[%clk
0:04:21.6]} 14. e5 {[%clk 0:04:19.9]} 14... Nd5 {[%clk 0:04:14.7]} 15. Bd2
{[%clk 0:03:54.9]} 15... cxd4 {[%clk 0:04:10.4]} 16. Nxd4 {[%clk 0:03:51.8]}
16... Nc5 {[%clk 0:04:07.8]} 17. Qf3 {[%clk 0:03:43]} 17... Rc8 {[%clk
0:03:41.9]} 18. Rfd1 {[%clk 0:03:29.9]} 18... Bg5 {[%clk 0:03:34]} 19. Qe2
{[%clk 0:03:19]} 19... Bxd2 {[%clk 0:03:31.9]} 20. Qxd2 {[%clk 0:03:17.5]} 20...
Qe7 {[%clk 0:03:27.2]} 21. Nge2 {[%clk 0:03:13]} 21... Ne4 {[%clk 0:03:23.6]}
22. Qe1 {[%clk 0:03:04.8]} 22... Qg5 {[%clk 0:03:11]} 23. Ng3 {[%clk 0:02:57]}
23... Nxg3 {[%clk 0:03:06.4]} 24. fxg3 {[%clk 0:02:55.9]} 24... Rfd8 {[%clk
0:03:03.9]} 25. Nf3 {[%clk 0:02:37.4]} 25... Qe3+ {[%clk 0:02:43]} 26. Qxe3
{[%clk 0:02:33.4]} 26... Nxe3 {[%clk 0:02:42.9]} 27. Rxd8+ {[%clk 0:02:32.8]}
27... Rxd8 {[%clk 0:02:40.9]} 28. Re1 {[%clk 0:02:26.3]} 28... Nd5 {[%clk
0:02:33.9]} 29. Rd1 {[%clk 0:02:22]} 29... Rc8 {[%clk 0:02:32.1]} 30. Kf2 {[%clk
0:02:14.2]} 30... Kf8 {[%clk 0:02:26.9]} 31. Nd4 {[%clk 0:02:11.3]} 31... Ke7
{[%clk 0:02:20.5]} 32. Nb5 {[%clk 0:01:55.5]} 32... Rc2+ {[%clk 0:02:16.6]} 33.
Kf3 {[%clk 0:01:51.6]} 33... g5 {[%clk 0:02:08.2]} 34. h4 {[%clk 0:01:40.9]}
34... g4+ {[%clk 0:02:06.7]} 35. Ke4 {[%clk 0:01:28.5]} 35... Rxg2 {[%clk
0:01:53.4]} 36. Nd4 {[%clk 0:01:21]} 36... Nc3+ {[%clk 0:01:51]} 0-1

[Event "Live Chess"]
[Site "Chess.com"]
[Date "2024.06.02"]
[Round "-"]
[White "ClassyChameleon"]
[Black "davigator"]
[Result "0-1"]
[WhiteElo "1535"]
[BlackElo "2338"]
[TimeControl "300"]
[EndTime "7:45:00 PDT"]
[Termination "davigator won by resignation"]

1. e4 {[%clk 0:04:58]} 1... c5 {[%clk 0:04:58.6]} 2. Nf3 {[%clk 0:04:57.3]} 2...
Nc6 {[%clk 0:04:57.5]} 3. d4 {[%clk 0:04:53.8]} 3... cxd4 {[%clk 0:04:56.4]} 4.
Nxd4 {[%clk 0:04:53.7]} 4... Nf6 {[%clk 0:04:55.2]} 5. Nxc6 {[%clk 0:04:52.2]}
5... bxc6 {[%clk 0:04:41.2]} 6. e5 {[%clk 0:04:51.4]} 6... Nd5 {[%clk
0:04:39.7]} 7. Bc4 {[%clk 0:04:49.7]} 7... Nb6 {[%clk 0:04:36.3]} 8. Bb3 {[%clk
0:04:45.2]} 8... g6 {[%clk 0:04:33.4]} 9. Bf4 {[%clk 0:04:43.3]} 9... Bg7 {[%clk
0:04:32.1]} 10. Nd2 {[%clk 0:04:40]} 10... O-O {[%clk 0:04:30.8]} 11. Nf3 {[%clk
0:04:39.2]} 11... Ba6 {[%clk 0:04:28.9]} 12. Qd2 {[%clk 0:04:29.4]} 12... Qc8
{[%clk 0:04:24.9]} 13. Bh6 {[%clk 0:04:25.4]} 13... Nc4 {[%clk 0:04:20.5]} 14.
Bxc4 {[%clk 0:04:22.9]} 14... Bxc4 {[%clk 0:04:18]} 15. b3 {[%clk 0:04:20.5]}
15... Bd5 {[%clk 0:04:14.7]} 16. Bxg7 {[%clk 0:04:13.8]} 16... Kxg7 {[%clk
0:04:12.3]} 17. Qd3 {[%clk 0:03:49.4]} 17... Qc7 {[%clk 0:04:06.4]} 18. O-O
{[%clk 0:03:47.3]} 18... Bxf3 {[%clk 0:04:05.4]} 19. Qxf3 {[%clk 0:03:46]} 19...
Qxe5 {[%clk 0:04:04.3]} 20. Rfe1 {[%clk 0:03:43.2]} 20... Qc5 {[%clk 0:04:03]}
21. c4 {[%clk 0:03:38.4]} 21... e5 {[%clk 0:03:58]} 22. Rad1 {[%clk 0:03:33.5]}
22... d6 {[%clk 0:03:55.1]} 23. Qg4 {[%clk 0:03:25.3]} 23... Rad8 {[%clk
0:03:52.5]} 24. Qg5 {[%clk 0:03:17.9]} 24... f6 {[%clk 0:03:51]} 25. Qc1 {[%clk
0:03:15.1]} 25... Rf7 {[%clk 0:03:49.4]} 26. Qb2 {[%clk 0:03:08.8]} 26... a5
{[%clk 0:03:48.2]} 27. a4 {[%clk 0:03:07.1]} 27... Rb7 {[%clk 0:03:46.3]} 28.
Qa2 {[%clk 0:02:59]} 28... Rdb8 {[%clk 0:03:43.9]} 29. Rd3 {[%clk 0:02:54.8]}
29... Kf7 {[%clk 0:03:38.9]} 30. Red1 {[%clk 0:02:52.3]} 30... Rd7 {[%clk
0:03:37.8]} 31. Qd2 {[%clk 0:02:46]} 31... Rbd8 {[%clk 0:03:36.6]} 32. Rb1
{[%clk 0:02:39.1]} 32... d5 {[%clk 0:03:33.7]} 33. cxd5 {[%clk 0:02:37.3]} 33...
Rxd5 {[%clk 0:03:31.1]} 34. Rxd5 {[%clk 0:02:36.1]} 34... Rxd5 {[%clk
0:03:29.3]} 35. Qe2 {[%clk 0:02:30]} 35... Qd6 {[%clk 0:03:27.2]} 36. h3 {[%clk
0:02:25.7]} 36... h5 {[%clk 0:03:25.2]} 37. Qa6 {[%clk 0:02:15.8]} 37... Kg7
{[%clk 0:03:23.6]} 38. Qb7+ {[%clk 0:02:03.8]} 38... Kh6 {[%clk 0:03:21.8]} 39.
h4 {[%clk 0:01:58]} 39... Rd1+ {[%clk 0:03:19.8]} 40. Rxd1 {[%clk 0:01:56.6]}
40... Qxd1+ {[%clk 0:03:19.2]} 41. Kh2 {[%clk 0:01:55.6]} 41... Qd6 {[%clk
0:03:18.6]} 42. g3 {[%clk 0:01:52]} 42... g5 {[%clk 0:03:15.3]} 43. hxg5+ {[%clk
0:01:44.9]} 43... fxg5 {[%clk 0:03:14.1]} 44. Qa8 {[%clk 0:01:44]} 44... Qf6
{[%clk 0:03:09.2]} 45. Kg2 {[%clk 0:01:39.8]} 45... g4 {[%clk 0:03:07.3]} 46.
Qxa5 {[%clk 0:01:24.8]} 46... h4 {[%clk 0:03:06.3]} 47. Qd2+ {[%clk 0:01:19.9]}
47... Kh5 {[%clk 0:03:03.6]} 48. Qe3 {[%clk 0:01:08.6]} 48... h3+ {[%clk
0:03:01.6]} 49. Kh2 {[%clk 0:01:06.9]} 49... Qe6 {[%clk 0:02:47.4]} 50. b4
{[%clk 0:00:37.7]} 50... Qd5 {[%clk 0:02:46.3]} 51. f3 {[%clk 0:00:30.4]} 51...
Qa2+ {[%clk 0:02:44.7]} 0-1